bitfinex-derivatives/quotes_ETHF0:USTF0_20260308
["timestamp","ask_amount","ask_price","bid_price","bid_amount"]
[1773009118297,0.64763038,1925.3,1924.3,0.91784802]
[1773009118494,0.64763038,1925.3,1924.3,0.00446887]
[1773009118695,0.64763038,1925.3,1924.3,0.91784802]
[1773009118894,0.41706656,1925.2,1924.3,0.91784802]
[1773009119095,0.41706656,1925.2,1924.3,0.00446887]
[1773009119296,0.42940363,1925.0,1924.3,0.00446887]
[1773009119594,0.24294342,1924.9,1923.8,0.91337915]
[1773009119795,0.42493476,1924.8,1923.2,0.91337915]
[1773009120199,0.41935153,1924.7,1923.4,0.91337915]
[1773009120390,0.41935153,1924.5,1923.4,0.91337915]
[1773009120596,0.41935153,1924.3,1923.4,0.00607902]
[1773009120999,0.41080576,1924.1,1923.4,0.91945817]
[1773009121598,0.41080576,1924.1,1923.4,0.00607902]
[1773009122198,0.38986214,1923.9,1923.1,0.91337915]
[1773009122503,0.38986214,1923.9,1922.9,0.91337915]
[1773009123100,0.38243779,1923.7,1922.9,0.91932176]
[1773009123602,0.38243779,1923.7,1922.9,0.00594261]
[1773009124098,0.38243779,1923.7,1922.0,1.04737419]
[1773009124296,0.37235778,1923.5,1922.0,1.04737419]
[1773009124498,0.37235778,1923.5,1922.1,1.04737419]
[1773009124896,0.37235778,1923.5,1922.3,1.04737419]
[1773009125099,0.37235778,1923.5,1922.3,1.05154423]
[1773009125702,6.802,1924.2,1922.3,1.05154423]
[1773009125703,0.36917721,1924.3,1922.4,5.90104116]
[1773009125914,0.36917721,1924.3,1922.5,1.04737419]
[1773009126114,0.36616339,1924.0,1922.5,1.04737419]
[1773009127013,0.36616339,1924.0,1922.3,0.00417004]
[1773009127014,0.36616339,1924.0,1922.7,1.05361708]
[1773009127414,0.36257702,1923.8,1922.7,1.05361708]
[1773009128716,0.40372177,1924.0,1922.9,1.05361708]
[1773009129416,0.39986163,1924.4,1923.1,1.05361708]
[1773009129812,0.00596736,1924.5,1923.3,1.05361708]
[1773009130212,0.00596736,1924.5,1923.5,1.05361708]
[1773009130715,0.39472307,1924.5,1923.5,1.05361708]
[1773009130916,0.00596736,1924.5,1923.5,1.05361708]
[1773009131411,0.00596736,1924.5,1923.6,6.56373041]
[1773009131614,0.38483918,1925.3,1923.7,1.05361708]
[1773009132010,0.37633512,1925.2,1923.9,1.05361708]
[1773009132410,0.37633512,1925.2,1924.1,1.05361708]
[1773009132610,0.38054326,1925.2,1924.1,1.05760092]
[1773009136117,0.00420814,1925.2,1924.1,1.05760092]
[1773009136519,0.00420814,1925.2,1924.3,1.05361708]
[1773009136715,0.34853421,1926.1,1924.4,1.05361708]
[1773009137011,0.34853421,1926.1,1924.5,1.05361708]
[1773009137012,0.34447549,1926.0,1924.5,1.05361708]
[1773009137214,0.34447549,1926.2,1924.5,1.05361708]
[1773009137420,0.34447549,1926.2,1924.7,1.05361708]
[1773009137616,0.34447549,1926.5,1924.7,1.05361708]
[1773009137816,1.95462729,1926.1,1924.9,1.05361708]
[1773009138115,0.34881932,1926.2,1925.1,1.05361708]
[1773009138311,0.00609039,1926.2,1925.1,1.05361708]
[1773009138516,0.34881932,1926.2,1925.1,1.05361708]
[1773009139115,0.00609039,1926.2,1925.2,5.64324749]
[1773009139319,0.00609039,1926.2,1925.3,1.05361708]
[1773009140722,0.34575686,1926.2,1925.3,1.05361708]
[1773009141224,0.00609039,1926.2,1925.3,1.05361708]
[1773009141825,0.33753532,1926.2,1925.3,1.05361708]
[1773009142026,0.00609039,1926.2,1925.3,1.05361708]
[1773009142628,6.24369776,1927.9,1925.1,7.012]
[1773009142629,0.27613628,1927.1,1925.5,1.05361708]
[1773009143126,0.27613628,1927.1,1925.7,1.05361708]
[1773009143526,0.27201979,1926.9,1925.7,1.05860038]
[1773009147127,0.25801753,1926.7,1925.7,1.05860038]
[1773009148629,0.57944868,1926.6,1925.7,1.05860038]
[1773009148829,0.25430103,1926.5,1925.7,1.05860038]
[1773009149030,0.26885078,1927.1,1925.7,1.05860038]
[1773009150828,0.00661438,1927.1,1925.8,5.57952467]
[1773009151132,0.30040888,1927.1,1925.9,1.05361708]
[1773009151632,0.00661438,1927.1,1925.9,1.05361708]
[1773009152125,0.28005963,1927.1,1925.9,1.05361708]
[1773009152728,0.00661438,1927.1,1925.9,1.05361708]
[1773009153736,0.00661438,1927.1,1926.0,5.68518387]
[1773009154027,0.26808599,1927.6,1926.1,0.93347924]
[1773009154534,0.27441024,1927.8,1926.3,0.93347924]
[1773009154934,0.27441024,1927.8,1926.5,0.93347924]
[1773009154935,0.27037131,1927.6,1926.5,0.93347924]
[1773009155135,0.25938,1927.7,1926.5,0.93347924]
[1773009155536,0.27592195,1927.8,1926.5,0.93347924]
[1773009156534,0.27706015,1927.7,1926.5,0.93347924]
[1773009157835,0.25207948,1927.5,1926.5,0.93347924]
[1773009158033,0.25207948,1927.3,1925.8,0.93347924]
[1773009158538,0.25207948,1927.3,1925.9,0.93347924]
[1773009159436,0.25207948,1927.3,1926.1,0.93347924]
[1773009159832,0.25207948,1927.3,1926.3,0.93347924]
[1773009160033,0.00555064,1927.8,1926.3,0.93347924]
[1773009160034,0.23749982,1927.7,1926.3,0.93347924]
[1773009160239,0.00555064,1927.8,1926.3,0.93347924]
[1773009160434,0.00555064,1927.8,1926.5,0.93347924]
[1773009160741,0.24305046,1927.8,1926.5,0.93347924]
[1773009161737,0.00555064,1927.8,1926.7,0.93347924]
[1773009162133,0.22323515,1927.8,1926.7,0.93347924]
[1773009165040,0.00555064,1927.8,1926.7,0.93347924]
[1773009165343,0.2168126,1927.8,1926.7,0.93347924]
[1773009166441,0.00555064,1927.8,1926.7,0.93347924]
[1773009167342,0.00555064,1927.8,1926.9,0.93347924]
[1773009168034,0.18112251,1928.5,1926.9,0.93347924]
[1773009168937,0.18242981,1928.3,1926.9,0.93347924]
[1773009169138,3.41119212,1928.1,1926.9,0.93347924]
[1773009169345,0.18242981,1928.1,1926.9,0.93347924]
[1773009170446,0.18207101,1928.2,1926.9,0.93347924]
[1773009171147,0.17740743,1928.0,1926.9,0.93347924]
[1773009171446,0.17740743,1928.0,1926.2,0.93347924]
[1773009171645,0.17740743,1928.0,1926.4,0.93347924]
[1773009171939,0.17740743,1928.0,1926.6,0.93347924]
[1773009172439,0.98994447,1927.7,1926.9,0.93447924]
[1773009180547,0.98994447,1927.9,1926.9,0.93447924]
[1773009180745,0.98994447,1928.3,1926.9,0.93447924]
[1773009181140,0.98994447,1928.3,1927.1,0.93347924]
[1773009181344,0.98994447,1928.3,1927.1,0.93781022]
[1773009181541,4.4631973,1928.9,1927.1,0.93781022]
[1773009181542,0.98994447,1928.8,1927.1,0.93781022]
[1773009181748,0.98994447,1928.6,1927.3,0.93347924]
[1773009182545,1.24918447,1928.9,1927.3,0.93347924]
[1773009182740,0.98994447,1929.0,1928.0,0.93347924]
[1773009183751,0.98497233,1929.2,1928.0,0.93347924]
[1773009183950,0.98497233,1929.4,1928.0,0.93347924]
[1773009186053,0.98497233,1929.4,1928.3,0.9460563]
[1773009186248,0.93389261,1930.3,1928.6,0.9460563]
[1773009186452,0.93389261,1930.3,1928.9,0.9460563]
[1773009186642,0.93389261,1930.2,1928.9,0.9460563]
[1773009186843,0.93389261,1929.9,1928.9,0.9460563]
[1773009190154,0.93389261,1930.2,1928.9,0.9460563]
[1773009190350,0.93389261,1930.2,1929.1,0.9460563]
[1773009191456,0.93389261,1930.1,1929.1,0.9460563]
[1773009195557,0.93389261,1930.3,1929.1,0.9460563]
[1773009196154,0.93389261,1930.6,1929.2,0.9460563]
[1773009196351,0.93389261,1930.6,1929.3,0.9460563]
[1773009196752,0.25893,1931.1,1929.3,0.9460563]
[1773009197055,0.93389261,1931.0,1929.5,0.9460563]
[1773009197648,0.93389261,1930.9,1929.5,0.9460563]
[1773009197950,0.93389261,1931.1,1929.7,0.9460563]
[1773009198853,0.93389261,1930.9,1929.7,0.9460563]
[1773009200755,0.2589,1931.3,1929.8,0.9460563]
[1773009201056,0.93389261,1931.0,1929.8,0.9460563]
[1773009204256,0.90367256,1930.8,1929.8,0.9460563]
[1773009206761,0.89336905,1930.6,1929.4,0.9460563]
[1773009206962,0.88911486,1930.9,1929.4,0.9460563]
[1773009207161,0.88911486,1930.9,1929.8,0.9460563]
[1773009209961,0.88075055,1930.7,1929.8,0.9460563]
[1773009210266,0.88075055,1930.6,1929.8,0.9460563]
[1773009211563,0.87646729,1931.0,1929.8,0.9460563]
[1773009212064,0.83739159,1930.8,1929.8,0.9460563]
[1773009212763,0.83328468,1930.6,1929.8,0.9460563]
[1773009213062,0.83328468,1930.6,1928.9,0.90694324]
[1773009213460,0.83328468,1930.6,1929.2,0.90694324]
[1773009213658,0.83439455,1930.9,1929.2,0.90694324]
[1773009213968,0.83439455,1930.9,1929.4,0.90694324]
[1773009219976,0.80910695,1931.1,1929.5,0.90694324]
[1773009220176,0.80910695,1930.9,1929.6,0.90694324]
[1773009220381,0.80910695,1930.7,1929.6,0.90694324]
[1773009220582,0.80910695,1930.5,1929.6,0.90694324]
[1773009223881,0.78490959,1930.1,1929.4,0.90694324]
[1773009224084,0.78490959,1929.9,1928.9,0.90694324]
[1773009224381,0.78490959,1929.7,1928.9,0.90694324]
[1773009225685,0.78490959,1929.7,1928.7,0.90694324]
[1773009226478,6.784,1930.2,1928.7,0.90694324]
[1773009226681,0.72941746,1930.1,1928.7,0.90694324]
[1773009232593,0.67144214,1930.6,1928.7,0.90694324]
[1773009232787,0.67144214,1930.6,1928.9,0.90694324]
[1773009232988,0.67144214,1930.6,1929.0,0.90694324]
[1773009233189,0.67144214,1930.6,1929.1,0.90694324]
[1773009239598,0.67144214,1930.6,1929.3,0.90694324]
[1773009240394,0.93044214,1930.6,1929.3,0.90694324]
[1773009240594,0.60968642,1930.5,1929.3,0.90694324]
[1773009240993,0.25894,1931.1,1929.3,0.90694324]
[1773009241297,0.25894,1931.1,1928.9,10.00887123]
[1773009241298,0.6057338,1931.0,1929.5,0.90694324]
[1773009241601,0.6057338,1931.0,1929.7,0.90694324]
[1773009242097,0.6057338,1931.0,1929.9,0.90694324]
[1773009242392,0.25887,1931.5,1929.9,0.90694324]
[1773009242603,0.59753255,1931.4,1929.9,0.90694324]
[1773009243098,0.59600064,1931.2,1929.9,0.90694324]
[1773009244093,0.57727631,1931.4,1930.1,0.81985821]
[1773009244289,1.56137063,1931.6,1930.1,0.8247731]
[1773009244493,0.57727631,1931.5,1930.3,0.81985821]
[1773009244688,0.98409432,1931.6,1930.3,0.81985821]
[1773009244998,0.98409432,1931.6,1930.5,0.81985821]
[1773009246202,0.6320149,1931.6,1930.7,0.82284405]
[1773009246403,0.83217537,1932.7,1930.8,0.82284405]
[1773009246699,7.04271,1932.8,1930.8,0.82284405]
[1773009246700,0.83217537,1932.3,1930.9,0.82284405]
[1773009246895,0.83217537,1931.9,1930.9,0.82284405]
[1773009247101,0.83217537,1931.7,1930.3,0.82284405]
[1773009247500,0.83217537,1931.5,1930.3,0.82284405]
[1773009248106,0.83217537,1932.0,1930.5,0.82284405]
[1773009248302,0.83217537,1932.5,1930.6,0.82284405]
[1773009248497,0.83217537,1932.5,1930.8,0.82284405]
[1773009248999,0.83217537,1932.3,1931.0,0.82284405]
[1773009249793,0.83217537,1932.1,1931.0,0.82284405]
[1773009250497,0.25872,1932.7,1931.0,0.82284405]
[1773009250702,0.83217537,1932.6,1931.2,0.82284405]
[1773009251303,0.83217537,1932.6,1931.4,0.82284405]
[1773009251702,0.83217537,1932.6,1931.6,0.82284405]
[1773009251905,0.83217537,1932.6,1931.6,0.82755766]
[1773009254209,0.83217537,1932.9,1931.6,0.82755766]
[1773009255206,0.83217537,1932.9,1931.8,0.82284405]
[1773009256905,0.83217537,1932.7,1931.8,0.82284405]
[1773009257506,0.83217537,1932.7,1931.6,0.82755766]
[1773009258609,0.83217537,1932.5,1931.6,0.00471361]
[1773009258905,0.83217537,1932.1,1931.6,0.00471361]
[1773009259113,0.83217537,1932.1,1930.6,0.82284405]
[1773009259509,0.83217537,1932.1,1930.8,0.82284405]
[1773009260104,0.83596262,1932.1,1930.8,0.82871658]
[1773009260507,0.83217537,1931.9,1930.8,0.82871658]
[1773009260704,0.25881,1932.0,1930.8,0.82871658]
[1773009260705,0.83217537,1931.7,1930.8,0.82871658]
[1773009261209,0.83217537,1931.5,1930.8,0.00587253]
[1773009261807,0.83217537,1931.7,1930.8,0.82871658]
[1773009265313,0.83217537,1931.6,1930.8,0.00587253]
[1773009265517,0.83217537,1931.6,1930.8,0.82871658]
[1773009266812,0.83217537,1931.6,1930.8,0.82971658]
[1773009267520,0.83217537,1931.6,1930.8,0.00687253]
[1773009268008,0.83217537,1931.6,1930.8,0.82971658]
[1773009268211,0.83217537,1932.0,1930.8,0.82971658]
[1773009269819,0.00378725,1932.1,1930.8,0.82971658]
[1773009271321,0.83596262,1932.1,1930.8,0.82971658]
[1773009272119,0.00378725,1932.1,1931.0,0.82284405]
[1773009272621,0.00378725,1932.1,1931.2,0.82284405]
[1773009274916,0.81513081,1932.1,1931.2,0.82284405]
[1773009275121,0.00378725,1932.1,1931.2,0.82284405]
[1773009275922,0.81134356,1932.8,1931.2,0.82284405]
[1773009276124,0.81134356,1932.8,1931.4,0.84943499]
[1773009276722,0.81134356,1932.6,1931.4,0.84943499]
[1773009276920,0.81250421,1932.6,1931.4,0.84943499]
[1773009280419,0.00116065,1932.6,1931.6,0.84943499]
[1773009280623,0.25859,1933.6,1931.6,0.84943499]
[1773009280823,0.81134356,1933.5,1931.8,0.84943499]
[1773009281724,0.81134356,1933.5,1932.0,0.84943499]
[1773009282226,0.81134356,1933.9,1932.4,0.84943499]
[1773009282522,0.81134356,1933.9,1932.5,5.39101345]
[1773009282725,0.81134356,1933.9,1932.6,0.84943499]
[1773009283223,0.81134356,1933.7,1932.6,0.84943499]
[1773009284228,7.0365,1934.3,1932.4,0.00593143]
[1773009284229,0.81134356,1934.2,1932.8,0.84943499]
[1773009285325,0.81134356,1934.0,1932.8,0.84943499]
[1773009286026,0.81134356,1933.8,1932.8,0.84943499]
[1773009290218,0.81134356,1934.2,1932.8,0.84943499]
[1773009291827,0.81134356,1934.2,1933.0,0.84943499]
[1773009296529,0.81134356,1934.1,1933.0,0.84943499]
[1773009297628,0.81134356,1934.0,1933.0,0.84943499]
[1773009301635,0.81134356,1934.4,1933.0,0.84943499]
[1773009304936,0.7261113,1934.1,1933.0,0.84943499]
[1773009305133,0.7261113,1933.9,1933.0,0.84943499]
[1773009305629,0.7261113,1933.9,1932.5,0.77459447]
[1773009307836,0.72184419,1933.4,1932.5,0.77459447]
[1773009309830,0.67613183,1933.1,1932.4,0.00593143]
[1773009310236,0.67613183,1933.1,1931.4,0.71760452]
[1773009310437,0.67613183,1933.1,1931.5,0.71760452]
[1773009310639,0.67613183,1933.1,1931.6,0.71760452]
[1773009311339,0.68196051,1933.1,1931.6,0.7225538]
[1773009311738,0.67306862,1933.0,1931.6,0.7225538]
[1773009313033,0.65766846,1932.8,1931.6,0.7225538]
[1773009314937,0.64414305,1932.5,1931.6,0.7225538]
[1773009315245,0.64414305,1933.0,1931.6,0.7225538]
[1773009316943,0.63735253,1932.9,1931.6,0.7225538]
[1773009322046,0.61714681,1932.8,1931.6,0.7225538]
[1773009323551,0.61379892,1932.6,1931.6,0.7225538]
[1773009325447,7.38282503,1932.8,1931.6,0.7225538]
[1773009325646,0.60682503,1932.7,1931.6,0.7225538]
[1773009326951,0.60022606,1932.6,1931.6,0.7225538]
[1773009328650,6.776,1932.5,1931.6,0.7225538]
[1773009328851,0.5973884,1932.4,1931.6,0.7225538]
[1773009330147,0.58753583,1932.3,1931.6,0.7225538]
[1773009330546,7.36353583,1932.3,1931.6,0.7225538]
[1773009330757,0.58753583,1932.2,1931.6,0.7225538]
[1773009334456,0.58099183,1932.9,1931.6,0.7225538]
[1773009334657,0.58099183,1932.7,1931.6,0.7225538]
[1773009336369,0.5743555,1932.6,1931.6,0.7225538]
[1773009338565,3.20900345,1932.4,1931.6,0.00494928]
[1773009338770,0.56194889,1932.2,1931.6,0.00494928]
[1773009339066,0.56194889,1932.2,1930.9,0.71200637]
[1773009340069,0.56194889,1932.2,1930.9,0.7164625]
[1773009340273,0.96278467,1934.2,1930.9,0.7164625]
[1773009340473,0.58616472,1933.1,1932.0,0.71200637]
[1773009341360,0.00582868,1933.1,1932.0,0.71200637]
[1773009343770,7.34991536,1933.5,1932.0,0.71200637]
[1773009343965,6.777,1933.4,1932.0,0.71200637]
[1773009344160,0.57665166,1933.3,1932.0,0.71200637]
[1773009344571,0.58170369,1933.3,1932.0,0.71200637]
[1773009345370,7.35870369,1933.3,1932.0,0.71200637]
[1773009345671,0.57376211,1933.2,1932.0,0.71200637]
[1773009347674,0.57259756,1933.3,1932.0,0.71200637]
[1773009347874,0.57259756,1933.3,1932.2,0.71200637]
[1773009348564,0.56384249,1933.1,1932.2,0.71200637]
[1773009352476,0.55476316,1932.9,1932.2,0.71200637]
[1773009352677,0.55476316,1933.2,1932.2,0.71200637]
[1773009356076,0.54685663,1933.0,1932.2,0.71200637]
[1773009356675,7.32285663,1932.9,1932.2,0.71200637]
[1773009356875,0.54275523,1932.8,1932.2,0.71200637]
[1773009357979,0.54373529,1932.8,1932.2,0.71200637]
[1773009360381,0.54373529,1932.8,1932.0,0.71200637]
[1773009360780,0.54373529,1932.8,1931.5,0.71200637]
[1773009361083,0.53477568,1932.6,1931.5,0.71200637]
[1773009361279,6.776,1932.5,1931.5,0.71200637]
[1773009361483,7.31077568,1932.5,1931.5,0.71200637]
[1773009362777,6.776,1932.8,1931.5,0.71200637]
[1773009362981,7.30375778,1932.9,1931.5,0.71200637]
[1773009363181,0.52775778,1932.9,1931.5,0.71200637]
[1773009364287,0.52162636,1933.2,1931.5,0.71200637]
[1773009364487,0.52162636,1933.2,1931.7,0.63178459]
[1773009366286,0.52162636,1933.2,1931.9,0.64072995]
[1773009366486,0.00505203,1933.3,1931.9,0.64072995]
[1773009368486,0.52061676,1933.3,1931.9,0.64072995]
[1773009374892,0.52282665,1933.3,1931.9,0.64072995]
[1773009389297,0.47862916,1933.1,1931.9,0.64072995]
[1773009399805,0.51722537,1933.3,1931.9,0.64072995]
[1773009405509,0.50472272,1933.7,1932.2,0.57900556]
[1773009405705,0.50472272,1933.7,1932.3,1.09740556]
[1773009405911,0.50977475,1934.5,1932.4,0.57900556]
[1773009406111,0.51210041,1934.3,1932.4,0.57900556]
[1773009406409,0.51210041,1934.3,1932.7,0.57900556]
[1773009406610,0.51210041,1934.3,1932.7,0.58523733]
[1773009406812,0.51210041,1934.3,1932.9,0.57900556]
[1773009407609,0.51210041,1934.3,1933.0,0.57900556]
[1773009409208,0.51755714,1934.8,1933.3,0.57900556]
[1773009410615,0.50127845,1934.5,1933.3,0.57900556]
[1773009410810,0.50127845,1934.2,1932.4,3.20661314]
[1773009411016,0.50127845,1934.0,1932.8,0.57900556]
[1773009411612,0.50127845,1933.9,1932.8,0.57900556]
[1773009411919,4.20928343,1934.7,1932.8,0.57900556]
[1773009412211,0.50986374,1934.9,1933.7,0.57900556]
[1773009414013,9.97961314,1935.6,1933.7,0.57900556]
[1773009414211,0.51871056,1935.5,1933.7,0.57900556]
[1773009415717,0.51871056,1935.5,1933.7,3.7856187]
[1773009416024,0.51871056,1935.5,1933.8,0.57900556]
[1773009417321,3.44044349,1936.4,1935.4,3.20661314]
[1773009417515,0.54297912,1937.2,1935.6,3.38197225]
[1773009417720,0.54297912,1936.8,1935.5,5.99564205]
[1773009417922,0.54297912,1936.5,1935.4,0.00499639]
[1773009418317,0.54297912,1936.2,1935.4,0.00499639]
[1773009419118,0.54297912,1936.2,1935.0,0.28686495]
[1773009419727,7.87598066,1938.0,1936.1,6.35299]
[1773009419926,0.78335095,1940.1,1937.9,3.20661314]
[1773009420224,0.77670551,1940.1,1938.5,3.20661314]
[1773009420527,0.54297912,1939.9,1938.7,0.52007709]
[1773009420725,0.54297912,1939.8,1938.8,0.52007709]
[1773009421123,0.54297912,1939.6,1938.8,0.52007709]
[1773009421520,0.54297912,1939.8,1938.8,0.52007709]
[1773009421731,12.47654368,1939.9,1939.1,0.57900556]
[1773009422030,11.63823533,1940.1,1939.5,0.57900556]
[1773009422224,11.63388077,1940.0,1939.5,0.58503126]
[1773009422424,10.80983937,1940.0,1939.5,0.58503126]
[1773009422620,0.00435456,1940.1,1939.5,0.58503126]
[1773009422825,0.54297912,1940.4,1939.5,0.58503126]
[1773009423422,3.42847475,1940.6,1939.5,0.58503126]
[1773009423618,3.42847475,1941.3,1939.5,0.58503126]
[1773009423826,3.42847475,1941.3,1939.6,6.767]
[1773009424028,3.42847475,1941.2,1939.7,3.32141875]
[1773009424326,3.4542161,1941.6,1940.4,3.32141875]
[1773009424632,3.4542161,1941.6,1940.6,3.32141875]
[1773009425530,3.42847475,1941.1,1939.5,3.32744445]
[1773009425727,3.42847475,1940.8,1939.5,0.0060257]
[1773009425933,3.42847475,1939.6,1937.0,3.32141875]
[1773009426127,4.16566015,1939.2,1937.0,3.32141875]
[1773009426727,4.16566015,1939.2,1937.4,4.23207715]
[1773009426928,4.17023926,1939.2,1937.6,4.23207715]
[1773009427327,4.16566015,1939.0,1937.7,4.23207715]
[1773009427724,4.16566015,1939.1,1937.7,4.23207715]
[1773009427936,4.16566015,1939.1,1937.9,4.23207715]
[1773009428125,4.16566015,1939.1,1937.8,5.70760316]
[1773009428126,0.00457911,1939.2,1938.1,4.23207715]
[1773009428526,0.00457911,1939.2,1938.3,4.23207715]
[1773009428728,0.00457911,1939.2,1938.5,4.23207715]
[1773009430424,4.16566015,1941.2,1938.5,4.23207715]
[1773009430627,4.16566015,1941.0,1939.4,4.23207715]
[1773009430831,4.16566015,1941.0,1939.6,4.23207715]
[1773009431529,4.16774857,1941.0,1939.6,4.23772144]
[1773009431929,0.00208842,1941.0,1939.8,4.23207715]
[1773009432332,0.00208842,1941.0,1940.0,4.23207715]
[1773009432526,4.16774857,1941.0,1940.0,4.23207715]
[1773009432832,4.16566015,1940.8,1939.6,0.00564429]
[1773009433028,4.16566015,1940.8,1939.6,4.23772144]
[1773009433228,0.00208842,1941.0,1939.7,5.59890372]
[1773009433431,0.00208842,1941.0,1939.8,4.23207715]
[1773009433626,4.16774857,1941.0,1939.8,4.23207715]
[1773009433830,4.16774857,1941.0,1940.0,4.23207715]
[1773009434230,18.93934268,1940.7,1940.0,4.23207715]
[1773009434636,4.16566015,1940.8,1940.0,4.23207715]
[1773009434932,4.16566015,1940.5,1939.6,0.00564429]
[1773009435126,4.16566015,1940.5,1939.2,4.23207715]
[1773009435331,4.16566015,1939.9,1938.7,4.23207715]
[1773009435837,4.16566015,1939.6,1938.7,4.23207715]
[1773009436231,18.93934268,1939.5,1938.7,4.23732668]
[1773009436432,4.17132026,1939.6,1938.7,4.23732668]
[1773009436634,4.17132026,1939.6,1938.7,0.00524953]
[1773009436933,4.17132026,1939.6,1938.7,4.23732668]
[1773009437536,0.00566011,1939.6,1938.7,4.23732668]
[1773009437835,4.16566015,1940.2,1938.9,4.23207715]
[1773009438236,4.16566015,1940.2,1939.1,4.23207715]
[1773009438435,4.16566015,1940.2,1939.3,4.23207715]
[1773009438638,4.16773275,1940.2,1939.3,4.23207715]
[1773009438832,18.93934268,1940.1,1939.3,4.23207715]
[1773009439133,4.16566015,1940.8,1939.3,4.23207715]
[1773009439436,4.16566015,1940.8,1939.5,4.23207715]
[1773009439834,4.16566015,1941.1,1939.7,4.23207715]
[1773009440030,4.16566015,1941.1,1939.6,5.74434564]
[1773009440031,4.16566015,1941.1,1939.9,4.23207715]
[1773009440435,23.10500283,1941.1,1939.9,4.23207715]
[1773009440637,4.16566015,1941.4,1939.9,4.23207715]
[1773009440834,6.754,1941.7,1939.8,6.754]
[1773009440835,4.16566015,1941.7,1940.2,0.25771]
[1773009441033,4.16566015,1942.5,1940.9,4.23207715]
[1773009441240,4.16566015,1942.5,1941.1,4.23207715]
[1773009441630,4.16566015,1942.6,1941.1,4.23207715]
[1773009441832,4.16566015,1943.7,1941.4,0.25755]
[1773009442032,4.16566015,1943.5,1941.9,4.20606123]
[1773009442234,4.16566015,1943.5,1942.1,4.23207715]
[1773009442439,4.16566015,1943.5,1941.9,0.00390016]
[1773009442639,4.16566015,1942.9,1941.9,0.00390016]
[1773009443243,4.16566015,1942.6,1941.9,0.00390016]
[1773009443435,4.16566015,1942.6,1941.9,4.23597731]
[1773009443637,4.16566015,1942.9,1941.9,4.23597731]
[1773009443843,4.16566015,1942.8,1941.0,10.98407715]
[1773009444042,4.16566015,1942.6,1941.0,4.23207715]
[1773009444243,4.16566015,1942.6,1941.2,4.23207715]
[1773009444640,4.16566015,1942.2,1941.2,4.23207715]
[1773009444842,4.16566015,1942.5,1941.2,4.23807696]
[1773009445042,4.16566015,1942.8,1941.4,4.23207715]
[1773009445238,4.16566015,1942.6,1941.4,4.23207715]
[1773009445439,4.16566015,1942.6,1941.4,10.98207715]
[1773009445742,18.93934268,1942.2,1941.4,10.98207715]
[1773009445942,4.16566015,1942.2,1941.4,10.98207715]
[1773009446147,4.16566015,1942.2,1941.3,6.749]
[1773009446444,4.16566015,1941.9,1941.2,0.00599981]
[1773009446948,4.16566015,1941.7,1940.8,10.98107715]
[1773009447148,4.16566015,1941.7,1940.2,4.23207715]
[1773009447448,4.16566015,1941.5,1940.3,4.23207715]
[1773009447839,0.0066126,1941.5,1940.3,4.23738892]
[1773009448048,4.17227275,1941.5,1940.4,5.53484418]
[1773009448244,18.93934268,1941.1,1940.3,4.23738892]
[1773009448546,4.16566015,1941.1,1940.3,4.23738892]
[1773009448845,18.93934268,1940.8,1940.3,4.23738892]
[1773009449241,17.34331289,1940.7,1940.3,4.23738892]
[1773009449443,4.16566015,1941.4,1940.3,4.23738892]
[1773009449842,4.16566015,1941.0,1940.4,6.748]
[1773009450242,17.97459919,1940.7,1940.3,0.00531177]
[1773009450440,0.0066126,1941.5,1939.8,10.38736775]
[1773009450441,4.16566015,1940.6,1939.8,6.748]
[1773009450647,4.16566015,1940.6,1939.7,6.748]
[1773009450846,4.16566015,1940.6,1939.7,10.98007715]
[1773009451048,4.16566015,1940.6,1939.7,4.23207715]
[1773009451245,13.80893904,1940.3,1939.7,4.23207715]
[1773009451447,4.16566015,1940.6,1939.7,10.98380193]
[1773009451649,4.16566015,1940.6,1939.7,6.75172478]
[1773009451847,4.16566015,1940.4,1939.7,4.23580193]
[1773009452047,4.16566015,1940.9,1939.7,0.00372478]
[1773009452243,13.80893904,1940.5,1939.7,0.00372478]
[1773009452449,4.16566015,1940.4,1939.7,0.00372478]
[1773009453352,3.78120962,1940.0,1939.7,0.00372478]
[1773009453553,0.00493751,1940.0,1939.7,0.00372478]
[1773009453946,13.80893904,1939.8,1939.7,0.00372478]
[1773009454151,4.06695076,1940.0,1939.7,0.00372478]
[1773009454349,9.52826284,1939.9,1939.7,0.00372478]
[1773009454553,4.07557968,1940.6,1939.7,0.00372478]
[1773009454851,4.07557968,1940.6,1939.7,0.02303189]
[1773009455647,4.0818359,1940.6,1939.7,0.02303189]
[1773009455850,4.16670098,1942.3,1940.9,0.25762]
[1773009456050,4.16670098,1942.3,1941.4,0.70053636]
[1773009456250,4.16670098,1942.3,1941.5,7.44853636]
[1773009456450,4.16670098,1942.9,1941.8,11.31731042]
[1773009456654,4.16670098,1942.9,1941.9,0.70053636]
[1773009456956,0.00401801,1942.9,1942.1,0.67137193]
[1773009457155,0.00401801,1942.9,1942.1,11.28814599]
[1773009457358,0.00401801,1942.9,1942.2,6.748]
[1773009457651,4.16870727,1944.5,1942.6,10.61677406]
[1773009457853,4.16870727,1944.5,1942.7,7.41535392]
[1773009458157,4.16870727,1944.5,1942.7,18.03212798]
[1773009458449,4.16870727,1944.5,1942.7,7.41535392]
[1773009458754,6.748,1944.7,1942.2,10.61677406]
[1773009458755,4.18537762,1943.7,1942.2,10.61677406]
[1773009458950,4.18537762,1943.5,1942.3,6.748]
[1773009459255,4.18650684,1944.3,1942.4,0.57242082]
[1773009459457,4.18650684,1944.2,1942.5,6.747]
[1773009459749,4.18650684,1944.2,1942.6,0.57242082]
[1773009459949,4.18650684,1944.2,1942.7,0.55422564]
[1773009460157,4.18650684,1944.2,1942.8,6.746]
[1773009460352,4.18650684,1944.2,1942.8,7.24060915]
[1773009460650,4.18650684,1944.2,1942.9,0.49460915]
[1773009460851,4.18650684,1944.2,1942.6,10.61677406]
[1773009460852,4.18650684,1944.2,1943.0,6.746]
[1773009461456,4.18650684,1944.2,1942.6,10.61677406]
[1773009461655,4.18650684,1944.2,1943.0,6.745]
[1773009462657,4.18650684,1944.2,1943.1,0.50781099]
[1773009463158,4.18650684,1944.2,1942.8,0.48820978]
[1773009463360,4.18650684,1944.2,1942.9,6.744]
[1773009463553,4.0344752,1945.1,1942.9,6.744]
[1773009463554,0.257,1945.6,1943.0,0.48820978]
[1773009463752,4.19219976,1945.3,1943.4,0.48820978]
[1773009463951,4.19219976,1945.3,1943.6,0.46995052]
[1773009464255,4.17467356,1945.1,1943.4,0.00524883]
[1773009464555,4.17467356,1944.9,1943.4,0.00524883]
[1773009464753,4.17467356,1944.7,1943.4,0.00524883]
[1773009465062,4.17467356,1944.5,1943.4,0.00524883]
[1773009465253,4.17539999,1944.3,1943.4,0.00524883]
[1773009467456,9.004,1945.7,1943.4,0.49566087]
[1773009467457,4.15449178,1945.6,1943.4,0.49566087]
[1773009467660,4.15449178,1945.5,1944.1,0.49041204]
[1773009467954,4.15449178,1945.5,1944.1,7.23241204]
[1773009468257,4.15449178,1945.5,1944.0,6.741]
[1773009468649,4.11911283,1945.4,1944.0,7.28379666]